[Event "World Senior chT-50 2019"]
[Site "Rhodes"]
[Date "2019.04.20"]
[Round "5.38"]
[White "MacElligott, Gerard"]
[Black "Escofet, Jaime"]
[Result "1/2-1/2"]
[ECO "A90"]
[WhiteElo "2025"]
[BlackElo "1970"]
[Annotator "NA"]
[PlyCount "84"]
[EventDate "2019.04.16"]
[EventType "team-tourn"]
[EventCountry "GRE"]
[SourceTitle "playchess.com"]
[Source "ChessBase"]
[SourceQuality "1"]
[WhiteTeam "Ireland"]
[BlackTeam "Uruguay"]
[WhiteTeamCountry "IRL"]
[BlackTeamCountry "URU"]
[TimeControl "40/5400+30:1800+30"]

1. d4 {[%emt 0:00:00]} e6 {[%emt 0:00:00]} 2. c4 {[%emt 0:00:00]} f5 {[%emt 0:00:00]} 3. g3 {[%emt 0:00:45]} Nf6 {[%emt 0:00:00]} 4. Nf3 {[%emt 0:00:10]} c6 {[%emt 0:00:00]} 5. Bg2 {[%emt 0:00:33]} d5 {[%emt 0:00:09]} 6. O-O {[%emt 0:00:20]} Bd6 {[%emt 0:00:06]} 7. Bf4 {[%emt 0:02:22]} Bxf4 {[%emt 0:00:18]} 8. gxf4 {[%emt 0:00:06]} O-O {[%emt 0:00:47]} 9. e3 {[%emt 0:00:38]} Nbd7 {[%emt 0:00:56]} 10. Nbd2 {[%emt 0:04:34]} Ne4 {[%emt 0:00:25]} 11. Ne5 {[%emt 0:02:49]} Nxe5 {[%emt 0:01:14]} 12. dxe5 {[%emt 0:03:12]} Nxd2 {[%emt 0:03:14]} 13. Qxd2 {[%emt 0:01:54]} b6 {[%emt 0:00:08]} 14. Rfd1 {[%emt 0:07:53]} Bb7 {[%emt 0:00:39]} 15. Rac1 {[%emt 0:05:33]} Qe7 {[%emt 0:04:25]} 16. b4 {[%emt 0:09:14]} Rfd8 {[%emt 0:04:53]} 17. cxd5 {[%emt 0:05:47]} cxd5 {[%emt 0:00:24]} 18. Bf1 {[%emt 0:09:05]} Rac8 {[%emt 0:08:15]} 19. Be2 {[%emt 0:02:44]} Qe8 {[%emt 0:02:12]} 20. Rxc8 {[%emt 0:02:52]} Rxc8 {[%emt 0:00:25]} 21. Rc1 {[%emt 0:01:09]} Rc6 {[%emt 0:10:08]} 22. a4 {[%emt 0:13:18]} Qc8 {[%emt 0:01:34]} 23. Rxc6 {[%emt 0:02:33]} Qxc6 {[%emt 0:00:11]} 24. Bb5 {[%emt 0:00:35]} Qc8 {[%emt 0:01:14]} 25. a5 {[%emt 0:02:44]} bxa5 {[%emt 0:09:22]} 26. bxa5 {[%emt 0:00:13]} Qc5 {[%emt 0:00:38]} 27. Be2 {[%emt 0:06:01]} Bc6 {[%emt 0:10:15]} 28. Qb2 {[%emt 0:11:11]} Qxa5 {[%emt 0:03:54]} 29. Qb8+ {[%emt 0:00:11]} Kf7 {[%emt 0:00:08]} 30. Bh5+ {[%emt 0:00:28]} g6 {[%emt 0:00:49]} 31. Bf3 {[%emt 0:00:14]} Be8 {[%emt 0:04:22]} 32. Qb7+ {[%emt 0:02:32]} Kg8 {[%emt 0:00:15]} 33. Qe7 {[%emt 0:00:32]} Bf7 {[%emt 0:00:13]} 34. h4 {[%emt 0:00:50]} h5 {[%emt 0:04:04]} 35. Kg2 {[%emt 0:01:41]} Qb6 {[%emt 0:00:17]} 36. Qg5 {[%emt 0:00:16]} Kf8 {[%emt 0:07:41]} 37. Qf6 {[%emt 0:00:22]} Qc7 {[%emt 0:01:43]} 38. Qh8+ {[%emt 0:01:07]} Bg8 {[%emt 0:01:13]} 39. Qf6+ {[%emt 0:00:20]} Qf7 {[%emt 0:00:24]} 40. Qd8+ {[%emt 0:00:00]} Kg7 {[%emt 0:00:00]} 41. Be2 {[%emt 0:11:05]} Qb7 {[%emt 0:01:32]} 42. Ba6 {[%emt 0:05:09]} Qxa6 {[%emt 0:03:56]} 1/2-1/2

[Event "World Senior chT-50 2019"]
[Site "Rhodes"]
[Date "2019.04.20"]
[Round "5.39"]
[White "Durante, Aurelio"]
[Black "Lyons, Brendan"]
[Result "1-0"]
[ECO "B01"]
[WhiteElo "1955"]
[BlackElo "1976"]
[Annotator "NA"]
[PlyCount "83"]
[EventDate "2019.04.16"]
[EventType "team-tourn"]
[EventCountry "GRE"]
[SourceTitle "playchess.com"]
[Source "ChessBase"]
[SourceQuality "1"]
[WhiteTeam "Uruguay"]
[BlackTeam "Ireland"]
[WhiteTeamCountry "URU"]
[BlackTeamCountry "IRL"]
[TimeControl "40/5400+30:1800+30"]

1. e4 {[%emt 0:00:00]} d5 {[%emt 0:00:00]} 2. exd5 {[%emt 0:00:15]} Nf6 {[%emt 0:00:01]} 3. d4 {[%emt 0:00:39]} Bg4 {[%emt 0:00:11]} 4. Nf3 {[%emt 0:02:35]} Qxd5 {[%emt 0:01:08]} 5. Be2 {[%emt 0:00:17]} e6 {[%emt 0:02:20]} 6. O-O {[%emt 0:00:37]} Bd6 {[%emt 0:02:58]} 7. Re1 {[%emt 0:03:04]} Nc6 {[%emt 0:15:36]} 8. c3 {[%emt 0:02:25]} O-O-O {[%emt 0:02:52]} 9. Nbd2 {[%emt 0:01:21]} Bf4 {[%emt 0:16:14]} 10. Nf1 {[%emt 0:04:38]} Bxc1 {[%emt 0:08:50]} 11. Qxc1 {[%emt 0:00:39]} h5 {[%emt 0:04:46]} 12. h3 {[%emt 0:04:07]} Bf5 {[%emt 0:01:43]} 13. Ne3 {[%emt 0:02:00]} Qd7 {[%emt 0:04:26]} 14. Nxf5 {[%emt 0:00:00]} exf5 {[%emt 0:00:06]} 15. Bb5 {[%emt 0:00:00]} Qd6 {[%emt 0:11:57]} 16. Ne5 {[%emt 0:09:20]} Nxe5 {[%emt 0:06:51]} 17. dxe5 {[%emt 0:08:02]} Qc5 {[%emt 0:00:29]} 18. exf6 {[%emt 0:00:36]} Qxb5 {[%emt 0:00:08]} 19. fxg7 {[%emt 0:00:58]} Rh7 {[%emt 0:01:17]} 20. a4 {[%emt 0:05:30]} Qc6 {[%emt 0:03:52]} 21. Qf4 {[%emt 0:02:34]} Rxg7 {[%emt 0:11:43]} 22. Qxf5+ {[%emt 0:00:22]} Kb8 {[%emt 0:00:09]} 23. Qe4 {[%emt 0:01:02]} Qg6 {[%emt 0:02:57]} 24. Rad1 {[%emt 0:01:00]} Rc8 {[%emt 0:00:33]} 25. Rd7 {[%emt 0:00:46]} a6 {[%emt 0:00:38]} 26. Qxg6 {[%emt 0:01:20]} Rxg6 {[%emt 0:00:05]} 27. Rxf7 {[%emt 0:00:11]} h4 {[%emt 0:00:25]} 28. Kh2 {[%emt 0:01:18]} a5 {[%emt 0:00:32]} 29. Rf4 {[%emt 0:00:28]} Rcg8 {[%emt 0:00:13]} 30. Rg1 {[%emt 0:00:10]} Rh8 {[%emt 0:00:47]} 31. g4 {[%emt 0:00:17]} hxg3+ {[%emt 0:00:14]} 32. fxg3 {[%emt 0:00:08]} Re8 {[%emt 0:00:36]} 33. Rg2 {[%emt 0:00:15]} Re1 {[%emt 0:00:30]} 34. h4 {[%emt 0:00:15]} Rh6 {[%emt 0:00:25]} 35. Kh3 {[%emt 0:02:38]} Rg6 {[%emt 0:00:11]} 36. h5 {[%emt 0:00:48]} Rg5 {[%emt 0:00:53]} 37. g4 {[%emt 0:00:32]} Rge5 {[%emt 0:00:39]} 38. g5 {[%emt 0:01:25]} R5e3+ {[%emt 0:00:54]} 39. Kg4 {[%emt 0:00:21]} Rh1 {[%emt 0:00:26]} 40. g6 {[%emt 0:01:04]} Re8 {[%emt 0:00:45]} 41. g7 {[%emt 0:01:07]} Rg8 {[%emt 0:00:25]} 42. Rf8+ {[%emt 0:00:12]} 1-0

[Event "World Senior chT-50 2019"]
[Site "Rhodes"]
[Date "2019.04.20"]
[Round "5.40"]
[White "Matthews, Gabriel"]
[Black "Barboza, Mauro"]
[Result "1/2-1/2"]
[ECO "D37"]
[WhiteElo "1782"]
[BlackElo "1873"]
[Annotator "NA"]
[PlyCount "199"]
[EventDate "2019.04.16"]
[EventType "team-tourn"]
[EventCountry "GRE"]
[SourceTitle "playchess.com"]
[Source "ChessBase"]
[SourceQuality "1"]
[WhiteTeam "Ireland"]
[BlackTeam "Uruguay"]
[WhiteTeamCountry "IRL"]
[BlackTeamCountry "URU"]
[TimeControl "40/5400+30:1800+30"]

1. d4 {[%emt 0:00:00]} Nf6 {[%emt 0:00:00]} 2. Nf3 {[%emt 0:00:20]} e6 {[%emt 0:00:00]} 3. Bf4 {[%emt 0:00:15]} d5 {[%emt 0:00:07]} 4. e3 {[%emt 0:00:29]} Be7 {[%emt 0:02:14]} 5. c4 {[%emt 0:01:09]} O-O {[%emt 0:00:14]} 6. Nc3 {[%emt 0:00:41]} c6 {[%emt 0:00:11]} 7. Rc1 {[%emt 0:03:48]} Nbd7 {[%emt 0:00:30]} 8. h3 {[%emt 0:01:25]} dxc4 {[%emt 0:00:21]} 9. Bxc4 {[%emt 0:00:31]} Nb6 {[%emt 0:00:08]} 10. Be2 {[%emt 0:05:13]} Nfd5 {[%emt 0:00:34]} 11. Bh2 {[%emt 0:02:57]} Bd6 {[%emt 0:00:14]} 12. O-O {[%emt 0:03:07]} Bxh2+ {[%emt 0:00:37]} 13. Kxh2 {[%emt 0:03:01]} Kh8 {[%emt 0:01:00]} 14. a3 {[%emt 0:06:25]} Qe7 {[%emt 0:00:29]} 15. Qc2 {[%emt 0:06:39]} f6 {[%emt 0:11:20]} 16. Bd3 {[%emt 0:01:41]} g6 {[%emt 0:00:13]} 17. Rfd1 {[%emt 0:07:01]} e5 {[%emt 0:00:22]} 18. dxe5 {[%emt 0:20:23]} fxe5 {[%emt 0:00:24]} 19. Be4 {[%emt 0:00:39]} Nf6 {[%emt 0:02:56]} 20. Kg1 {[%emt 0:06:48]} Nbd7 {[%emt 0:05:44]} 21. Bd3 {[%emt 0:03:50]} Nc5 {[%emt 0:07:43]} 22. Ne4 {[%emt 0:04:28]} Nxd3 {[%emt 0:00:46]} 23. Qxd3 {[%emt 0:00:17]} Nd5 {[%emt 0:02:27]} 24. Qe2 {[%emt 0:03:38]} Bf5 {[%emt 0:02:52]} 25. Nfd2 {[%emt 0:02:11]} Rae8 {[%emt 0:02:07]} 26. Qc4 {[%emt 0:05:34]} Bc8 {[%emt 0:04:11]} 27. Qe2 {[%emt 0:01:25]} Rf7 {[%emt 0:01:18]} 28. Rf1 {[%emt 0:02:44]} Ref8 {[%emt 0:01:05]} 29. Qc4 {[%emt 0:01:51]} Be6 {[%emt 0:04:53]} 30. Qe2 {[%emt 0:00:19]} Qh4 {[%emt 0:01:32]} 31. Rcd1 {[%emt 0:03:04]} Rf5 {[%emt 0:01:48]} 32. Ng3 {[%emt 0:00:52]} R5f7 {[%emt 0:02:22]} 33. Nge4 {[%emt 0:00:29]} Nf6 {[%emt 0:01:30]} 34. Nxf6 {[%emt 0:00:35]} Rxf6 {[%emt 0:00:14]} 35. e4 {[%emt 0:00:56]} Qg5 {[%emt 0:02:14]} 36. Kh2 {[%emt 0:00:43]} Qh4 {[%emt 0:02:31]} 37. f3 {[%emt 0:00:54]} g5 {[%emt 0:00:55]} 38. Nb1 {[%emt 0:01:05]} g4 {[%emt 0:01:16]} 39. Nd2 {[%emt 0:00:37]} gxh3 {[%emt 0:01:04]} 40. g3 {[%emt 0:00:00]} Qh5 {[%emt 0:00:00]} 41. Qe3 {[%emt 0:03:23]} b6 {[%emt 0:02:32]} 42. Qc3 {[%emt 0:04:41]} Qg5 {[%emt 0:01:37]} 43. Rf2 {[%emt 0:02:15]} Kg8 {[%emt 0:01:45]} 44. Rg1 {[%emt 0:10:13]} Bg4 {[%emt 0:07:40]} 45. Rgf1 {[%emt 0:03:31]} Bc8 {[%emt 0:01:53]} 46. Rg1 {[%emt 0:01:02]} Qh5 {[%emt 0:02:13]} 47. Qe3 {[%emt 0:01:26]} Ba6 {[%emt 0:04:18]} 48. Rc1 {[%emt 0:01:54]} Rd6 {[%emt 0:00:43]} 49. Rc3 {[%emt 0:02:12]} Rfd8 {[%emt 0:00:31]} 50. Nc4 {[%emt 0:03:28]} Rd4 {[%emt 0:00:23]} 51. g4 {[%emt 0:00:50]} Qh4 {[%emt 0:06:25]} 52. Nxe5 {[%emt 0:00:49]} Qf6 {[%emt 0:02:25]} 53. f4 {[%emt 0:00:38]} c5 {[%emt 0:00:17]} 54. g5 {[%emt 0:00:41]} Qe6 {[%emt 0:01:26]} 55. Qg3 {[%emt 0:01:14]} Rxe4 {[%emt 0:03:24]} 56. Ng4 {[%emt 0:00:09]} Re2 {[%emt 0:01:36]} 57. Nf6+ {[%emt 0:01:11]} Kh8 {[%emt 0:02:44]} 58. Rc2 {[%emt 0:00:07]} Re1 {[%emt 0:01:29]} 59. Rcd2 {[%emt 0:00:55]} Rxd2 {[%emt 0:11:09]} 60. Rxd2 {[%emt 0:00:12]} Re2+ {[%emt 0:00:08]} 61. Rxe2 {[%emt 0:00:22]} Qxe2+ {[%emt 0:00:09]} 62. Kxh3 {[%emt 0:00:15]} Bc8+ {[%emt 0:03:50]} 63. f5 {[%emt 0:00:30]} Bxf5+ {[%emt 0:00:13]} 64. Kh4 {[%emt 0:00:13]} Qc4+ {[%emt 0:00:41]} 65. Kh5 {[%emt 0:00:27]} Qf7+ {[%emt 0:00:56]} 66. Kh4 {[%emt 0:00:06]} Qb7 {[%emt 0:06:11]} 67. Qe1 {[%emt 0:01:05]} Qb8 {[%emt 0:02:05]} 68. Qd2 {[%emt 0:01:00]} Qc7 {[%emt 0:02:04]} 69. Nh5 {[%emt 0:00:16]} Qd7 {[%emt 0:00:58]} 70. Qc3+ {[%emt 0:00:16]} Qd4+ {[%emt 0:00:10]} 71. Kg3 {[%emt 0:01:01]} Qxc3+ {[%emt 0:00:30]} 72. bxc3 {[%emt 0:00:03]} Kg8 {[%emt 0:00:45]} 73. Kf4 {[%emt 0:00:09]} Bd3 {[%emt 0:01:18]} 74. Ke5 {[%emt 0:00:27]} Kf7 {[%emt 0:00:32]} 75. Kd6 {[%emt 0:00:55]} Be4 {[%emt 0:00:38]} 76. Nf4 {[%emt 0:00:40]} Ke8 {[%emt 0:00:39]} 77. Ne6 {[%emt 0:00:56]} Bg2 {[%emt 0:00:32]} 78. Nf4 {[%emt 0:00:23]} Bf3 {[%emt 0:01:48]} 79. Ne6 {[%emt 0:00:38]} Bg4 {[%emt 0:00:30]} 80. Nf4 {[%emt 0:00:36]} Kd8 {[%emt 0:00:19]} 81. g6 {[%emt 0:00:11]} hxg6 {[%emt 0:00:20]} 82. Nxg6 {[%emt 0:00:06]} Kc8 {[%emt 0:00:11]} 83. Ne5 {[%emt 0:00:40]} Be2 {[%emt 0:00:59]} 84. Kc6 {[%emt 0:00:44]} Bf1 {[%emt 0:00:29]} 85. Kd6 {[%emt 0:00:28]} Kb7 {[%emt 0:00:20]} 86. Nd7 {[%emt 0:00:17]} c4 {[%emt 0:01:05]} 87. Ne5 {[%emt 0:00:38]} Ka6 {[%emt 0:00:53]} 88. Kd5 {[%emt 0:00:43]} Kb5 {[%emt 0:00:19]} 89. Nf7 {[%emt 0:00:46]} Ka4 {[%emt 0:00:17]} 90. Nd6 {[%emt 0:00:16]} Kxa3 {[%emt 0:00:26]} 91. Nc8 {[%emt 0:00:21]} b5 {[%emt 0:00:28]} 92. Nxa7 {[%emt 0:00:47]} b4 {[%emt 0:00:18]} 93. Nb5+ {[%emt 0:00:36]} Kb3 {[%emt 0:00:18]} 94. cxb4 {[%emt 0:00:13]} Kxb4 {[%emt 0:00:12]} 95. Nd4 {[%emt 0:00:28]} c3 {[%emt 0:00:38]} 96. Nc2+ {[%emt 0:00:49]} Kb3 {[%emt 0:00:27]} 97. Ne3 {[%emt 0:00:31]} Bd3 {[%emt 0:00:24]} 98. Kc5 {[%emt 0:00:37]} Bg6 {[%emt 0:01:44]} 99. Kb5 {[%emt 0:00:25]} Bf7 {[%emt 0:00:46]} 100. Kc5 {[%emt 0:00:22]} 1/2-1/2

[Event "World Senior chT-50 2019"]
[Site "Rhodes"]
[Date "2019.04.21"]
[Round "6.1"]
[White "Benjamin, Joel"]
[Black "Olafsson, Helgi"]
[Result "1/2-1/2"]
[ECO "B12"]
[WhiteElo "2523"]
[BlackElo "2506"]
[Annotator "ChessBase"]
[PlyCount "107"]
[EventDate "2019.04.16"]
[EventType "team-tourn"]
[EventCountry "GRE"]
[SourceTitle "playchess.com"]
[Source "ChessBase"]
[SourceQuality "1"]
[WhiteTeam "United States"]
[BlackTeam "Iceland"]
[WhiteTeamCountry "USA"]
[BlackTeamCountry "ISL"]
[TimeControl "40/5400+30:1800+30"]

1. e4 {[%emt 0:00:00]} c6 {[%emt 0:00:00]} 2. d4 {[%emt 0:00:46]} d5 {[%emt 0:00:10]} 3. e5 {[%emt 0:00:38]} Bf5 {[%emt 0:00:42]} 4. h4 {[%emt 0:01:16]} h5 {[%emt 0:00:18]} 5. Bd3 {[%emt 0:00:10]} Bxd3 {[%emt 0:01:22]} 6. Qxd3 {[%emt 0:00:04]} e6 {[%emt 0:01:49]} 7. Bg5 {[%emt 0:00:16]} Qa5+ {[%emt 0:00:17]} 8. Nd2 {[%emt 0:01:14]} Qa6 {[%emt 0:01:50]} 9. c4 {[%emt 0:01:18]} Ne7 {[%emt 0:08:32]} 10. Ngf3 {[%emt 0:08:08]} Nf5 {[%emt 0:06:49]} 11. O-O {[%emt 0:02:15]} Nd7 {[%emt 0:01:21]} 12. Rfc1 {[%emt 0:06:04]} dxc4 {[%emt 0:06:28]} 13. Nxc4 {[%emt 0:01:07]} Nb6 {[%emt 0:01:27]} 14. b3 {[%emt 0:20:42]} Ba3 {[%emt 0:18:30]} 15. Rc2 {[%emt 0:00:54]} Nd5 {[%emt 0:01:15]} 16. Qe4 {[%emt 0:00:55]} Be7 {[%emt 0:05:19]} 17. Bxe7 {[%emt 0:04:08]} Ndxe7 {[%emt 0:00:06]} 18. Nd6+ {[%emt 0:04:14]} Nxd6 {[%emt 0:00:13]} 19. exd6 {[%emt 0:00:02]} Nf5 {[%emt 0:00:06]} 20. d7+ {[%emt 0:00:40]} Kxd7 {[%emt 0:03:08]} 21. Ne5+ {[%emt 0:00:14]} Ke8 {[%emt 0:13:08]} 22. Nxc6 {[%emt 0:13:49]} Qb6 {[%emt 0:07:14]} 23. Re1 {[%emt 0:07:10]} bxc6 {[%emt 0:05:25]} 24. Rxc6 {[%emt 0:02:50]} Qxd4 {[%emt 0:00:57]} 25. Qxf5 {[%emt 0:00:10]} Rh6 {[%emt 0:03:05]} 26. Qb5 {[%emt 0:06:36]} Kf8 {[%emt 0:09:54]} 27. Qc5+ {[%emt 0:01:02]} Qxc5 {[%emt 0:00:08]} 28. Rxc5 {[%emt 0:00:04]} a5 {[%emt 0:01:18]} 29. a4 {[%emt 0:03:19]} Ke7 {[%emt 0:02:18]} 30. Ree5 {[%emt 0:04:01]} Rhh8 {[%emt 0:00:56]} 31. Rxa5 {[%emt 0:02:18]} Rxa5 {[%emt 0:00:07]} 32. Rxa5 {[%emt 0:00:03]} Rb8 {[%emt 0:00:01]} 33. Rxh5 {[%emt 0:00:43]} Rxb3 {[%emt 0:00:02]} 34. Rb5 {[%emt 0:01:14]} Ra3 {[%emt 0:01:27]} 35. a5 {[%emt 0:00:43]} f5 {[%emt 0:00:51]} 36. g3 {[%emt 0:01:28]} Kf6 {[%emt 0:00:21]} 37. Kg2 {[%emt 0:00:08]} g5 {[%emt 0:00:16]} 38. Rc5 {[%emt 0:05:21]} gxh4 {[%emt 0:00:33]} 39. gxh4 {[%emt 0:00:06]} f4 {[%emt 0:00:58]} 40. h5 {[%emt 0:00:00]} e5 {[%emt 0:00:00]} 41. h6 {[%emt 0:10:45]} Kg6 {[%emt 0:01:29]} 42. Rxe5 {[%emt 0:08:37]} Kxh6 {[%emt 0:00:28]} 43. Rc5 {[%emt 0:05:18]} Kg6 {[%emt 0:00:27]} 44. Rb5 {[%emt 0:00:38]} Kf6 {[%emt 0:00:23]} 45. Rb6+ {[%emt 0:01:51]} Kf5 {[%emt 0:02:49]} 46. a6 {[%emt 0:04:57]} Ke5 {[%emt 0:04:48]} 47. f3 {[%emt 0:01:19]} Kd5 {[%emt 0:02:39]} 48. Kf2 {[%emt 0:00:39]} Ra2+ {[%emt 0:03:08]} 49. Kf1 {[%emt 0:00:26]} Kd4 {[%emt 0:01:30]} 50. Re6 {[%emt 0:00:59]} Kd5 {[%emt 0:00:11]} 51. Re4 {[%emt 0:00:33]} Rxa6 {[%emt 0:00:10]} 52. Kg2 {[%emt 0:00:46]} Rg6+ {[%emt 0:00:28]} 53. Kh2 {[%emt 0:00:09]} Rh6+ {[%emt 0:00:06]} 54. Kg2 {[%emt 0:00:38] Ke5 [%emt 00:00:30]} 1/2-1/2

[Event "World Senior chT-50 2019"]
[Site "Rhodes"]
[Date "2019.04.21"]
[Round "6.2"]
[White "Hjartarson, Johann"]
[Black "Novikov, Igor"]
[Result "1-0"]
[ECO "B80"]
[WhiteElo "2520"]
[BlackElo "2563"]
[Annotator "ChessBase"]
[PlyCount "77"]
[EventDate "2019.04.16"]
[EventType "team-tourn"]
[EventCountry "GRE"]
[SourceTitle "playchess.com"]
[Source "ChessBase"]
[SourceQuality "1"]
[WhiteTeam "Iceland"]
[BlackTeam "United States"]
[WhiteTeamCountry "ISL"]
[BlackTeamCountry "USA"]
[TimeControl "40/5400+30:1800+30"]

1. e4 {[%emt 2:00:21]} c5 {[%emt 0:00:06]} 2. Nf3 {[%emt 0:00:05]} d6 {[%emt 0:00:06]} 3. d4 {[%emt 0:00:05]} cxd4 {[%emt 0:00:05]} 4. Nxd4 {[%emt 0:00:05]} Nf6 {[%emt 0:00:05]} 5. Nc3 {[%emt 0:00:06]} a6 {[%emt 0:00:06]} 6. Be3 {[%emt 0:00:15]} e6 {[%emt 0:00:14]} 7. f3 {[%emt 0:00:39]} b5 {[%emt 0:00:22]} 8. Qd2 {[%emt 0:00:14]} Nbd7 {[%emt 0:00:28]} 9. g4 {[%emt 0:01:01]} h6 {[%emt 0:01:37]} 10. h4 {[%emt 0:02:24]} Bb7 {[%emt 0:02:56]} 11. O-O-O {[%emt 0:01:50]} b4 {[%emt 0:07:22]} 12. Na4 {[%emt 0:00:26]} d5 {[%emt 0:12:21]} 13. Bh3 {[%emt 0:03:31]} g5 {[%emt 0:16:47]} 14. hxg5 {[%emt 0:13:55]} hxg5 {[%emt 0:00:05]} 15. Bxg5 {[%emt 0:00:35]} dxe4 {[%emt 0:02:28]} 16. Bxf6 {[%emt 0:04:34]} Nxf6 {[%emt 0:01:14]} 17. g5 {[%emt 0:05:16]} exf3 {[%emt 0:02:22]} 18. Qf4 {[%emt 0:05:29]} Bd6 {[%emt 0:09:43]} 19. Qxf6 {[%emt 0:01:12]} Qxf6 {[%emt 0:00:09]} 20. gxf6 {[%emt 0:00:04]} O-O-O {[%emt 0:03:44]} 21. c3 {[%emt 0:37:23]} f2 {[%emt 0:04:25]} 22. Bxe6+ {[%emt 0:01:30]} fxe6 {[%emt 0:00:21]} 23. Rhf1 {[%emt 0:00:18]} Bf4+ {[%emt 0:12:12]} 24. Kc2 {[%emt 0:00:06]} Be4+ {[%emt 0:00:13]} 25. Kb3 {[%emt 0:00:38]} Bg3 {[%emt 0:00:48]} 26. Nc5 {[%emt 0:04:41]} Bg2 {[%emt 0:03:50]} 27. Ncxe6 {[%emt 0:00:35]} Rd6 {[%emt 0:10:19]} 28. Kxb4 {[%emt 0:01:48]} Bxf1 {[%emt 0:01:46]} 29. Rxf1 {[%emt 0:00:02]} Kd7 {[%emt 0:00:49]} 30. Nc5+ {[%emt 0:01:41]} Ke8 {[%emt 0:02:16]} 31. Ne4 {[%emt 0:00:47]} Rb6+ {[%emt 0:01:19]} 32. Kc5 {[%emt 0:00:19]} Rxb2 {[%emt 0:00:24]} 33. Nxg3 {[%emt 0:00:18]} Rxa2 {[%emt 0:02:04]} 34. Ne4 {[%emt 0:00:36]} Kf7 {[%emt 0:00:41]} 35. Nxf2 {[%emt 0:02:00]} Rc8+ {[%emt 0:01:17]} 36. Kd6 {[%emt 0:01:24]} Kxf6 {[%emt 0:01:19]} 37. Ne4+ {[%emt 0:00:22]} Kg6 {[%emt 0:01:20]} 38. Rg1+ {[%emt 0:01:02]} Kh5 {[%emt 0:01:16]} 39. Nf5 {[%emt 0:00:59]} 1-0

[Event "World Senior chT-50 2019"]
[Site "Rhodes"]
[Date "2019.04.21"]
[Round "6.4"]
[White "Thorhallsson, Throstur"]
[Black "Yermolinsky, Alex"]
[Result "1/2-1/2"]
[ECO "B19"]
[WhiteElo "2425"]
[BlackElo "2508"]
[Annotator "ChessBase"]
[PlyCount "65"]
[EventDate "2019.04.16"]
[EventType "team-tourn"]
[EventCountry "GRE"]
[SourceTitle "playchess.com"]
[Source "ChessBase"]
[SourceQuality "1"]
[WhiteTeam "Iceland"]
[BlackTeam "United States"]
[WhiteTeamCountry "ISL"]
[BlackTeamCountry "USA"]
[TimeControl "40/5400+30:1800+30"]

1. e4 {[%emt 0:00:00]} c6 {[%emt 0:00:27]} 2. d4 {[%emt 0:00:19]} d5 {[%emt 0:00:05]} 3. Nc3 {[%emt 0:02:46]} dxe4 {[%emt 0:00:08]} 4. Nxe4 {[%emt 0:00:05]} Bf5 {[%emt 0:01:40]} 5. Ng3 {[%emt 0:00:52]} Bg6 {[%emt 0:00:06]} 6. h4 {[%emt 0:02:40]} h6 {[%emt 0:00:06]} 7. Nf3 {[%emt 0:01:18]} Nd7 {[%emt 0:00:05]} 8. h5 {[%emt 0:01:00]} Bh7 {[%emt 0:00:06]} 9. Bd3 {[%emt 0:00:14]} Bxd3 {[%emt 0:00:05]} 10. Qxd3 {[%emt 0:00:05]} e6 {[%emt 0:00:36]} 11. Bf4 {[%emt 0:02:29]} Qa5+ {[%emt 0:01:06]} 12. Bd2 {[%emt 0:02:17]} Bb4 {[%emt 0:00:13]} 13. c3 {[%emt 0:04:43]} Be7 {[%emt 0:00:08]} 14. a3 {[%emt 0:08:13]} Ngf6 {[%emt 0:02:12]} 15. Qe2 {[%emt 0:03:58]} O-O {[%emt 0:02:18]} 16. Ne5 {[%emt 0:11:35]} Rfd8 {[%emt 0:27:46]} 17. b4 {[%emt 0:08:18]} Qd5 {[%emt 0:09:18]} 18. f4 {[%emt 0:06:40]} a5 {[%emt 0:00:15]} 19. O-O {[%emt 0:03:49]} axb4 {[%emt 0:00:35]} 20. axb4 {[%emt 0:02:11]} Rxa1 {[%emt 0:00:11]} 21. Rxa1 {[%emt 0:00:02]} Bxb4 {[%emt 0:00:12]} 22. Rb1 {[%emt 0:01:44]} Bf8 {[%emt 0:04:37]} 23. Rxb7 {[%emt 0:01:18]} c5 {[%emt 0:00:12]} 24. Rb5 {[%emt 0:06:27]} Qa2 {[%emt 0:00:48]} 25. Nf3 {[%emt 0:05:39]} cxd4 {[%emt 0:06:51]} 26. cxd4 {[%emt 0:00:53]} Nd5 {[%emt 0:00:10]} 27. Ra5 {[%emt 0:07:09]} Qb1+ {[%emt 0:04:22]} 28. Kh2 {[%emt 0:00:31]} N7f6 {[%emt 0:05:30]} 29. Ne5 {[%emt 0:01:50]} Qb6 {[%emt 0:12:35]} 30. Nxf7 {[%emt 0:03:59]} Kxf7 {[%emt 0:10:32]} 31. Ra6 {[%emt 0:00:14]} Ng4+ {[%emt 0:00:04]} 32. Kh3 {[%emt 0:00:50]} Nf2+ {[%emt 0:00:05]} 33. Kh2 {[%emt 0:00:09]} 1/2-1/2

[Event "World Senior chT-50 2019"]
[Site "Rhodes"]
[Date "2019.04.21"]
[Round "6.5"]
[White "Speelman, Jon S"]
[Black "Vaganian, Rafael A"]
[Result "1/2-1/2"]
[ECO "D41"]
[WhiteElo "2509"]
[BlackElo "2535"]
[Annotator "ChessBase"]
[PlyCount "65"]
[EventDate "2019.04.16"]
[EventType "team-tourn"]
[EventCountry "GRE"]
[SourceTitle "playchess.com"]
[Source "ChessBase"]
[SourceQuality "1"]
[WhiteTeam "England"]
[BlackTeam "Armenia"]
[WhiteTeamCountry "ENG"]
[BlackTeamCountry "ARM"]
[TimeControl "40/5400+30:1800+30"]

1. c4 {[%emt 0:00:00]} c5 {[%emt 0:02:11]} 2. Nf3 {[%emt 0:00:00]} Nf6 {[%emt 0:00:22]} 3. Nc3 {[%emt 0:00:08]} d5 {[%emt 0:01:49]} 4. cxd5 {[%emt 0:01:13]} Nxd5 {[%emt 0:00:07]} 5. d4 {[%emt 0:00:24]} e6 {[%emt 0:03:31]} 6. e4 {[%emt 0:02:38]} Nxc3 {[%emt 0:02:34]} 7. bxc3 {[%emt 0:00:05]} cxd4 {[%emt 0:00:03]} 8. cxd4 {[%emt 0:00:07]} Bb4+ {[%emt 0:00:04]} 9. Bd2 {[%emt 0:00:07]} Bxd2+ {[%emt 0:00:03]} 10. Qxd2 {[%emt 0:00:06]} O-O {[%emt 0:00:07]} 11. Bc4 {[%emt 0:00:04]} b6 {[%emt 0:00:25]} 12. O-O {[%emt 0:00:42]} Bb7 {[%emt 0:00:09]} 13. Rfe1 {[%emt 0:00:40]} Nd7 {[%emt 0:00:07]} 14. Rad1 {[%emt 0:04:33]} Rc8 {[%emt 0:00:35]} 15. Bb3 {[%emt 0:01:41]} h6 {[%emt 0:07:32]} 16. h3 {[%emt 0:08:33]} Re8 {[%emt 0:04:37]} 17. Re3 {[%emt 0:04:04]} Nf6 {[%emt 0:11:53]} 18. Qe2 {[%emt 0:04:15]} Qc7 {[%emt 0:03:56]} 19. Ne5 {[%emt 0:04:38]} b5 {[%emt 0:06:39]} 20. Ng4 {[%emt 0:11:18]} Nxe4 {[%emt 0:13:27]} 21. Rxe4 {[%emt 0:01:31]} Bxe4 {[%emt 0:00:08]} 22. Qxe4 {[%emt 0:00:07]} a5 {[%emt 0:00:09]} 23. d5 {[%emt 0:05:14]} f5 {[%emt 0:06:03]} 24. d6 {[%emt 0:02:18]} fxe4 {[%emt 0:02:59]} 25. dxc7 {[%emt 0:00:06]} Rxc7 {[%emt 0:00:04]} 26. Rd6 {[%emt 0:01:45]} Rc1+ {[%emt 0:00:59]} 27. Kh2 {[%emt 0:00:07]} Kf7 {[%emt 0:00:02]} 28. Ne5+ {[%emt 0:03:52]} Kf6 {[%emt 0:00:18]} 29. Ng4+ {[%emt 0:00:05]} Kf7 {[%emt 0:01:52]} 30. Ne5+ {[%emt 0:00:07]} Kf6 {[%emt 0:00:09]} 31. Ng4+ {[%emt 0:00:01]} Kf5 32. Rb6 {[%emt 0:00:59]} Rc5 {[%emt 0:01:41]} 33. Rd6 {[%emt 0:00:07] Ke5 [%emt 00:00:02]} 1/2-1/2